fUST/lending_fUST_20250605
["ID","MTS","AMOUNT","RATE_DAILY","PERIOD"]
[364306051,1749064241291,-609.47,0.00022754,2]
[364306053,1749064241300,-985.64,0.00022754,2]
[364306055,1749064241310,-1546.63,0.00022754,2]
[364306057,1749064241320,-485.7,0.00022754,2]
[364306058,1749064241330,-440.0,0.00022755,2]
[364306059,1749064241341,-440.0,0.00022755,2]
[364306060,1749064241351,-440.0,0.00022755,2]
[364306061,1749064241360,-440.0,0.00022755,2]
[364306062,1749064241372,-440.0,0.00022755,2]
[364306063,1749064241381,-474.19,0.00022755,2]
[364306064,1749064241390,-445.04,0.00022755,2]
[364306065,1749064241400,-1248.16,0.00022755,2]
[364306066,1749064241409,-440.0,0.00022755,2]
[364306067,1749064241419,-440.0,0.00022755,2]
[364306068,1749064241428,-957.89,0.00022755,2]
[364306069,1749064241438,-465.53,0.00022755,2]
[364306070,1749064241447,-440.0,0.00022755,2]
[364306071,1749064241457,-440.0,0.00022755,2]
[364306072,1749064241467,-977.4,0.00022755,2]
[364306073,1749064241476,-1184.69,0.00022814,2]
[364306074,1749064241487,-1075.48,0.00022814,2]
[364306075,1749064241499,-440.0,0.00022814,2]
[364306076,1749064241508,-401.47,0.00022814,2]
[364306077,1749064241518,-440.0,0.00022814,2]
[364306078,1749064241527,-440.0,0.00022814,2]
[364306079,1749064241538,-429.60408432,0.00022814,2]
[364306080,1749064241548,-440.0,0.00022814,2]
[364306081,1749064241557,-440.0,0.00022814,2]
[364306082,1749064241567,-310.0,0.00022815,2]
[364306083,1749064241578,-515.45,0.00022815,2]
[364306084,1749064241587,-440.0,0.00022815,2]
[364306085,1749064241597,-440.0,0.00022815,2]
[364306086,1749064241607,-346.58,0.00022815,2]
[364306087,1749064241616,-440.0,0.00022815,2]
[364306088,1749064241626,-440.0,0.00022815,2]
[364306089,1749064241635,-440.0,0.00022815,2]
[364306090,1749064241645,-440.0,0.00022815,2]
[364306091,1749064241655,-440.0,0.00022815,2]
[364306092,1749064241665,-440.0,0.00022815,2]
[364306093,1749064241674,-500.0,0.00022818,2]
[364306094,1749064241684,-500.0,0.00022818,2]
[364306095,1749064241694,-2342.15275744,0.00022831,8]
[364306096,1749064241703,-752.24,0.00022837,4]
[364306097,1749064241714,-2438.48,0.00022847,2]
[364306098,1749064241723,-440.0,0.00022847,2]
[364306099,1749064241733,-726.61,0.00022847,2]
[364306100,1749064241743,-712.76,0.00022847,2]
[364306101,1749064241753,-160.0,0.00022852,4]
[364306103,1749064241763,-431.19384678,0.000229,2]
[364306105,1749064241772,-609.47,0.00022934,2]
[364306107,1749064241782,-752.24,0.00022937,6]
[364306109,1749064241791,-526.43422345,0.00022991,2]
[364306111,1749064241802,-172.0,0.00023,7]
[364306113,1749064241811,-2342.15275744,0.00023003,8]
[364306115,1749064241820,-500.0,0.00023013,2]
[364306117,1749064241830,-206.0,0.0002302,2]
[364306119,1749064241840,-985.64,0.00023028,2]
[364306121,1749064241849,-1546.63,0.00023028,2]
[364306123,1749064241858,-485.7,0.00023028,2]
[364306125,1749064241867,-440.0,0.00023029,2]
[364306127,1749064241876,-440.0,0.00023029,2]
[364306129,1749064241885,-440.0,0.00023029,2]
[364306131,1749064241897,-440.0,0.00023029,2]
[364306133,1749064241906,-440.0,0.00023029,2]
[364306136,1749064241916,-474.19,0.00023029,2]
[364306138,1749064241925,-445.04,0.00023029,2]
[364306140,1749064241934,-1248.16,0.00023029,2]
[364306141,1749064241943,-440.0,0.00023029,2]
[364306144,1749064241953,-440.0,0.00023029,2]
[364306145,1749064241962,-957.89,0.00023029,2]
[364306147,1749064241972,-465.53,0.00023029,2]
[364306149,1749064241981,-440.0,0.00023029,2]
[364306151,1749064241991,-440.0,0.00023029,2]
[364306153,1749064242001,-977.4,0.00023029,2]
[364306155,1749064242010,-752.24,0.00023037,2]
[364306157,1749064242019,-1184.69,0.00023088,2]
[364306159,1749064242030,-1075.48,0.00023088,2]
[364306161,1749064242039,-440.0,0.00023088,2]
[364306163,1749064242048,-440.0,0.00023088,2]
[364306165,1749064242058,-440.0,0.00023088,2]
[364306167,1749064242067,-440.0,0.00023088,2]
[364306169,1749064242076,-440.0,0.00023088,2]
[364306171,1749064242086,-609.47,0.00023089,2]
[364306173,1749064242096,-515.45,0.00023089,2]
[364306175,1749064242106,-380.0,0.00023089,2]
[364306177,1749064242117,-440.0,0.00023089,2]
[364306179,1749064242126,-440.0,0.00023089,2]
[364306181,1749064242135,-440.0,0.00023089,2]
[364306183,1749064242144,-440.0,0.00023089,2]
[364306185,1749064242154,-390.0,0.00023089,2]
[364306187,1749064242163,-440.0,0.00023089,2]
[364306189,1749064242172,-440.0,0.00023089,2]
[364306191,1749064242181,-993.69,0.000231,7]
[364306193,1749064242191,-2438.48,0.00023121,2]
[364306195,1749064242200,-440.0,0.00023121,2]
[364306197,1749064242210,-726.61,0.00023121,2]
[364306199,1749064242219,-712.76,0.00023121,2]
[364306201,1749064242228,-752.24,0.00023137,5]
[364306202,1749064242238,-5000.0,0.00023158,2]
[364306203,1749064242248,-2342.15275744,0.00023176,8]
[364306205,1749064242257,-587.0,0.00023191,2]
[364306207,1749064242267,-151.0,0.000232,6]
[364306209,1749064242276,-752.24,0.00023237,7]
[364306211,1749064242285,-600.0,0.0002325,2]
[364306213,1749064242295,-318.37,0.00023287,2]
[364306215,1749064242305,-318.37,0.00023287,2]
[364306217,1749064242314,-318.37,0.00023287,2]
[364306219,1749064242323,-318.37,0.00023287,2]
[364306221,1749064242332,-318.37,0.00023287,2]
[364306223,1749064242342,-318.37,0.00023287,2]
[364306225,1749064242351,-318.37,0.00023287,2]
[364306227,1749064242360,-318.37,0.00023287,2]
[364306229,1749064242369,-206.0,0.000233,2]
[364306231,1749064242379,-609.47,0.00023302,2]
[364306233,1749064242388,-985.64,0.00023302,2]
[364306235,1749064242397,-1546.63,0.00023302,2]
[364306237,1749064242406,-485.7,0.00023302,2]
[364306239,1749064242416,-318.37,0.00023303,2]
[364306241,1749064242425,-440.0,0.00023303,2]
[364306243,1749064242434,-440.0,0.00023303,2]
[364306245,1749064242443,-440.0,0.00023303,2]
[364306247,1749064242452,-440.0,0.00023303,2]
[364306249,1749064242461,-440.0,0.00023303,2]
[364306251,1749064242470,-474.19,0.00023303,2]
[364306253,1749064242479,-445.04,0.00023303,2]
[364306255,1749064242491,-1248.16,0.00023303,2]
[364306257,1749064242500,-440.0,0.00023303,2]
[364306259,1749064242510,-440.0,0.00023303,2]
[364306261,1749064242519,-957.89,0.00023303,2]
[364306263,1749064242528,-465.53,0.00023303,2]
[364306265,1749064242538,-440.0,0.00023303,2]
[364306268,1749064242548,-440.0,0.00023303,2]
[364306271,1749064242557,-977.4,0.00023303,2]
[364306273,1749064242566,-609.47,0.00023305,2]
[364306276,1749064242576,-752.24,0.00023337,6]
[364306279,1749064242585,-2342.15275744,0.00023348,9]
[364306280,1749064242594,-1200.0,0.00023356,2]
[364306282,1749064242602,-1184.69,0.00023362,2]
[364306284,1749064242612,-1075.48,0.00023362,2]
[364306286,1749064242621,-440.0,0.00023362,2]
[364306289,1749064242630,-440.0,0.00023362,2]
[364306292,1749064242640,-440.0,0.00023362,2]
[364306294,1749064242649,-440.0,0.00023362,2]
[364306296,1749064242659,-440.0,0.00023362,2]
[364306298,1749064242668,-515.45,0.00023363,2]
[364306301,1749064242677,-319.1,0.00023363,2]
[364306304,1749064242686,-440.0,0.00023363,2]
[364306307,1749064242695,-440.0,0.00023363,2]
[364306310,1749064242704,-440.0,0.00023363,2]
[364306313,1749064242713,-440.0,0.00023363,2]
[364306316,1749064242723,-440.0,0.00023363,2]
[364306319,1749064242734,-1000.0,0.00023366,2]
[364306322,1749064242743,-1000.0,0.00023366,2]
[364306324,1749064242752,-200.0,0.0002338,7]
[364306328,1749064242762,-609.47,0.00023393,2]
[364306332,1749064242771,-2438.48,0.00023395,2]
[364306335,1749064242781,-440.0,0.00023395,2]
[364306339,1749064242790,-726.61,0.00023395,2]
[364306343,1749064242804,-712.76,0.00023395,2]
[364306345,1749064242814,-215.0738,0.00023431,2]
[364306347,1749064242823,-752.24,0.00023437,5]
[364306349,1749064242833,-600.0,0.00023492,2]
[364306351,1749064242843,-375.44,0.000235,7]
[364306353,1749064242852,-182.17196922,0.00023507,2]
[364306355,1749064242862,-2342.15275744,0.00023521,9]
[364306357,1749064242872,-800.0,0.00023536,2]
[364306359,1749064242881,-752.24,0.00023537,5]
[364306361,1749064242890,-500.0,0.00023561,2]
[364306363,1749064242900,-985.64,0.00023576,2]
[364306365,1749064242910,-1546.63,0.00023576,2]
[364306367,1749064242922,-485.7,0.00023576,2]
[364306369,1749064242931,-318.37,0.00023577,2]
[364306371,1749064242941,-440.0,0.00023577,2]
[364306373,1749064242950,-440.0,0.00023577,2]
[364306375,1749064242959,-440.0,0.00023577,2]
[364306377,1749064242969,-440.0,0.00023577,2]
[364306379,1749064242979,-440.0,0.00023577,2]
[364306381,1749064242988,-474.19,0.00023577,2]
[364306383,1749064242998,-445.04,0.00023577,2]
[364306385,1749064243007,-609.47,0.00023577,2]
[364306387,1749064243017,-609.47,0.00023577,2]
[364306389,1749064243027,-609.47,0.00023577,2]
[364306391,1749064243036,-609.47,0.00023577,2]
[364306393,1749064243046,-609.54129879,0.00023577,2]
[364306395,1749064243056,-1248.16,0.00023577,2]
[364306397,1749064243065,-440.0,0.00023577,2]
[364306399,1749064243074,-440.0,0.00023577,2]
[364306401,1749064243084,-957.89,0.00023577,2]
[364306403,1749064243093,-465.53,0.00023577,2]
[364306405,1749064243103,-151.0,0.00023577,7]
[364306407,1749064243112,-440.0,0.00023577,2]
[364306409,1749064243122,-151.0,0.00023577,7]
[364306411,1749064243132,-440.0,0.00023577,2]
[364306413,1749064243141,-151.0,0.00023577,7]
[364306415,1749064243151,-977.4,0.00023577,2]
[364306417,1749064243161,-151.0,0.00023577,7]
[364306428,1749064243247,-206.0,0.0002359,2]
[364306429,1749064243268,-151.0,0.000236,9]
[364306430,1749064243277,-182.17196922,0.00023616,2]
[364306431,1749064243287,-153.88339088,0.00023616,3]
[364306432,1749064243296,-316.0,0.00023616,3]
[364306433,1749064243305,-316.0,0.00023616,3]
[364306434,1749064243315,-166.0,0.00023616,3]
[364306435,1749064243324,-1742.0,0.00023616,3]
[364306436,1749064243333,-166.0,0.00023616,3]
[364306437,1749064243342,-1742.0,0.00023616,3]
[364306438,1749064243351,-172.0,0.00023616,3]
[364306439,1749064243361,-1742.0,0.00023616,3]
[364306440,1749064243370,-1742.0,0.00023616,3]
[364306441,1749064243379,-1742.0,0.00023616,3]
[364306442,1749064243388,-1742.0,0.00023616,3]
[364306443,1749064243396,-1742.0,0.00023616,3]
[364306444,1749064243406,-316.0,0.00023616,3]
[364306445,1749064243415,-1742.0,0.00023616,3]
[364306446,1749064243424,-316.0,0.00023616,3]
[364306447,1749064243433,-1742.0,0.00023616,3]
[364306448,1749064243442,-316.0,0.00023616,3]
[364306449,1749064243451,-1742.0,0.00023616,3]
[364306450,1749064243461,-316.0,0.00023616,3]
[364306451,1749064243470,-1742.0,0.00023616,3]
[364306452,1749064243479,-316.0,0.00023616,3]
[364306453,1749064243488,-1742.0,0.00023616,3]
[364306454,1749064243501,-316.0,0.00023616,3]
[364306455,1749064243510,-1742.0,0.00023616,3]
[364306456,1749064243520,-1742.0,0.00023616,3]
[364306457,1749064243529,-316.0,0.00023616,3]
[364306458,1749064243539,-1742.0,0.00023616,3]
[364306459,1749064243548,-316.0,0.00023616,3]
[364306460,1749064243557,-1742.0,0.00023616,3]
[364306461,1749064243567,-316.0,0.00023616,3]
[364306462,1749064243579,-1742.0,0.00023616,3]
[364306463,1749064243589,-316.0,0.00023616,3]
[364306465,1749064243603,-1742.0,0.00023616,3]
[364306467,1749064243613,-316.0,0.00023616,3]
[364306469,1749064243622,-1742.0,0.00023616,3]
[364306471,1749064243632,-316.0,0.00023616,3]
[364306473,1749064243641,-1742.0,0.00023616,3]
[364306475,1749064243652,-316.0,0.00023616,3]
[364306477,1749064243662,-316.0,0.00023616,3]
[364306479,1749064243671,-1742.0,0.00023616,3]
[364306480,1749064243680,-316.0,0.00023616,3]
[364306481,1749064243691,-1742.0,0.00023616,3]
[364306483,1749064243700,-316.0,0.00023616,3]
[364306485,1749064243710,-1742.0,0.00023616,3]
[364306487,1749064243719,-316.0,0.00023616,3]
[364306489,1749064243728,-1742.0,0.00023616,3]
[364306491,1749064243737,-1742.0,0.00023616,3]
[364306493,1749064243746,-316.0,0.00023616,3]
[364306495,1749064243756,-1742.0,0.00023616,3]
[364306497,1749064243765,-316.0,0.00023616,3]
[364306499,1749064243774,-1742.0,0.00023616,3]
[364306501,1749064243784,-316.0,0.00023616,3]
[364306503,1749064243793,-1742.0,0.00023616,3]
[364306505,1749064243802,-316.0,0.00023616,3]
[364306507,1749064243811,-1742.0,0.00023616,3]
[364306509,1749064243820,-316.0,0.00023616,3]
[364306511,1749064243830,-316.0,0.00023616,3]
[364306513,1749064243839,-1028.57805349,0.00023616,3]
[364306515,1749064243851,-316.0,0.00023616,3]
[364306517,1749064243860,-316.0,0.00023616,3]
[364306519,1749064243869,-316.0,0.00023616,3]
[364306521,1749064243878,-316.0,0.00023616,3]
[364306523,1749064243887,-316.0,0.00023616,3]
[364306525,1749064243896,-316.0,0.00023616,3]
[364306527,1749064243905,-316.0,0.00023616,3]
[364306529,1749064243915,-316.0,0.00023616,3]
[364306531,1749064243923,-316.0,0.00023616,3]
[364306533,1749064243933,-316.0,0.00023616,3]
[364306535,1749064243942,-316.0,0.00023616,3]
[364306537,1749064243951,-316.0,0.00023616,3]
[364306539,1749064243960,-316.0,0.00023616,3]
[364306540,1749064243969,-316.0,0.00023616,3]
[364306542,1749064243978,-316.0,0.00023616,3]
[364306544,1749064243987,-316.0,0.00023616,3]
[364306546,1749064243996,-316.0,0.00023616,3]
[364306548,1749064244005,-316.0,0.00023616,3]
[364306550,1749064244015,-316.0,0.00023616,3]
[364306552,1749064244024,-316.0,0.00023616,3]
[364306554,1749064244033,-316.0,0.00023616,3]
[364306556,1749064244043,-316.0,0.00023616,3]
[364306558,1749064244052,-316.0,0.00023616,3]
[364306560,1749064244061,-316.0,0.00023616,3]
[364306562,1749064244070,-316.0,0.00023616,3]
[364306564,1749064244079,-316.0,0.00023616,3]
[364306566,1749064244088,-269.88134464,0.00023616,3]
[364306568,1749064244099,-168.0,0.00023616,3]
[364306570,1749064244108,-168.0,0.00023616,3]
[364306572,1749064244118,-168.0,0.00023616,3]
[364306574,1749064244127,-168.0,0.00023616,3]
[364306576,1749064244136,-168.0,0.00023616,3]
[364306578,1749064244146,-168.0,0.00023616,3]
[364306580,1749064244155,-168.0,0.00023616,3]
[364306582,1749064244165,-173.53754126,0.00023616,3]
[364306584,1749064244173,-1184.69,0.00023636,2]
[364306586,1749064244182,-1075.48,0.00023636,2]
[364306588,1749064244191,-440.0,0.00023636,2]
[364306590,1749064244200,-370.0,0.00023636,2]
[364306592,1749064244211,-440.0,0.00023636,2]
[364306594,1749064244221,-440.0,0.00023636,2]
[364306596,1749064244230,-353.35,0.00023636,2]
[364306598,1749064244239,-515.45,0.00023637,2]
[364306600,1749064244248,-477.5,0.00023637,2]
[364306601,1749064244257,-440.0,0.00023637,2]
[364306603,1749064244266,-440.0,0.00023637,2]
[364306605,1749064244276,-440.0,0.00023637,2]
[364306607,1749064244285,-151.0,0.00023637,7]
[364306609,1749064244295,-380.0,0.00023637,2]
[364306611,1749064244304,-752.24,0.00023637,5]
[364306614,1749064244314,-2438.48,0.00023669,2]
[364306615,1749064244323,-440.0,0.00023669,2]
[364306618,1749064244334,-726.61,0.00023669,2]
[364306619,1749064244345,-712.76,0.00023669,2]
[364306621,1749064244355,-956.162843,0.00023675,3]
[364306623,1749064244365,-2342.15275744,0.00023693,9]
[364306625,1749064244375,-5000.0,0.00023706,2]
[364306627,1749064244384,-247.364,0.00023709,2]
[364306629,1749064244393,-250.0,0.00023709,2]
[364306631,1749064244402,-152.115,0.00023709,2]
[364306633,1749064244412,-235.529,0.00023709,2]
[364306635,1749064244422,-216.455,0.00023709,2]
[364306637,1749064244432,-962.0,0.00023709,2]
[364306639,1749064244442,-709.0,0.00023709,2]
[364306641,1749064244451,-2229.0,0.00023709,2]
[364306643,1749064244460,-495.838,0.00023709,2]
[364306645,1749064244469,-526.43422345,0.00023722,2]
[364306647,1749064244479,-752.24,0.00023737,5]
[364306649,1749064244490,-37634.41,0.00023737,10]
[364306650,1749064244503,-9941.15,0.00023737,10]
[364306653,1749064244514,-250.00000198,0.0002375,4]
[364306655,1749064244523,-182.17196922,0.00023753,2]
[364306657,1749064244535,-167084.79361399,0.00023768,2]
[364306658,1749064244544,-151.0,0.00023768,7]
[364306660,1749064244555,-151.0,0.00023768,7]
[364306662,1749064244564,-151.0,0.00023768,7]
[364306664,1749064244576,-151.0,0.00023768,7]
[364306666,1749064244586,-151.0,0.00023768,7]
[364306669,1749064244597,-262.180723,0.00023768,2]
[364306671,1749064244606,-262.180723,0.00023768,2]
[364306672,1749064244616,-151.0,0.00023768,7]
[364306674,1749064244626,-151.0,0.00023768,7]
[364306676,1749064244635,-151.0,0.00023768,7]
[364306678,1749064244646,-151.0,0.00023768,7]
[364306680,1749064244655,-151.0,0.00023768,7]
[364306682,1749064244664,-151.0,0.00023768,7]
[364306684,1749064244674,-151.0,0.00023768,7]
[364306686,1749064244683,-151.0,0.00023768,7]
[364306688,1749064244693,-151.0,0.00023768,7]
[364306690,1749064244703,-151.0,0.00023768,7]
[364306692,1749064244712,-151.0,0.00023768,7]
[364306694,1749064244721,-151.0,0.00023768,7]
[364306696,1749064244731,-141.85929923,0.00023768,7]
[364306722,1749064244979,-430.0,0.00019541,2]
[364306724,1749064244989,-440.0,0.00019833,2]
[364306726,1749064244999,-219.87739023,0.00020107,2]
[364306728,1749064245011,-226.07208946,0.00020107,2]
[364306730,1749064245021,-500.0,0.00020896,2]
[364306732,1749064245031,-468.27296565,0.00020896,2]
[364306734,1749064245042,-440.0,0.00020897,2]
[364306736,1749064245054,-401.71574444,0.00020897,2]
[364306738,1749064245065,-490.0,0.00021111,2]
[364306740,1749064245076,-440.0,0.00021111,2]
[364306742,1749064245086,-440.0,0.00021171,2]
[364306744,1749064245097,-440.0,0.00021385,2]
[364306746,1749064245107,-151.0,0.00021391,2]
[364306748,1749064245117,-151.0,0.00021391,2]
[364306758,1749064245217,-151.0,0.00021391,2]
[364306760,1749064245229,-151.0,0.00021391,2]
[364306763,1749064245239,-500.0,0.00021391,2]
[364306764,1749064245248,-500.0,0.00021391,2]
[364306766,1749064245258,-151.0,0.00021418,2]
[364306768,1749064245268,-151.0,0.00021418,2]
[364306770,1749064245278,-500.0,0.00021418,2]
[364306772,1749064245288,-440.0,0.00021445,2]
[364306774,1749064245298,-198.0,0.00021446,2]
[364306776,1749064245308,-500.0,0.00021446,2]
[364306779,1749064245318,-440.0,0.00021659,2]
[364306781,1749064245329,-440.0,0.00021719,2]
[364306783,1749064245342,-440.0,0.00021993,2]
[364306784,1749064245361,-440.0,0.00022267,2]
[364306786,1749064245373,-440.0,0.00022541,2]
[364306788,1749064245383,-492.87,0.00022815,2]
[364306790,1749064245393,-9.14070077,0.00023768,7]
[364306793,1749064245403,-151.0,0.00023768,7]
[364306794,1749064245417,-151.0,0.00023768,7]
[364306796,1749064245428,-319.850138,0.00023768,2]
[364306798,1749064245438,-319.850138,0.00023768,2]
[364306800,1749064245448,-151.0,0.00023768,7]
[364306802,1749064245458,-151.0,0.00023768,7]
[364306804,1749064245470,-151.0,0.00023768,7]
[364306806,1749064245481,-500.0,0.00023773,2]
[364306808,1749064245492,-500.0,0.00023773,2]
[364306811,1749064245507,-500.0,0.00023773,2]
[364306813,1749064245518,-500.0,0.00023773,2]
[364306814,1749064245529,-500.0,0.00023773,2]
[364306817,1749064245540,-500.0,0.00023773,2]
[364306819,1749064245550,-500.0,0.00023773,2]
[364306821,1749064245561,-500.0,0.00023773,2]
[364306822,1749064245572,-500.0,0.00023773,2]
[364306824,1749064245583,-92604.54,0.000238,7]
[364306826,1749064245592,-1742.0,0.00023822,3]
[364306828,1749064245603,-316.0,0.00023822,3]
[364306830,1749064245613,-752.24,0.00023837,2]
[364306832,1749064245623,-985.64,0.0002385,2]
[364306834,1749064245634,-1546.63,0.0002385,2]
[364306837,1749064245645,-485.7,0.0002385,2]
[364306840,1749064245655,-318.37,0.00023851,2]
[364306842,1749064245665,-443.12,0.00023851,2]
[364306843,1749064245674,-440.0,0.00023851,2]
[364306845,1749064245684,-440.0,0.00023851,2]
[364306848,1749064245695,-440.0,0.00023851,2]
[364306850,1749064245705,-401.24,0.00023851,2]
[364306852,1749064245715,-474.19,0.00023851,2]
[364306854,1749064245724,-445.04,0.00023851,2]
[364306855,1749064245734,-1248.16,0.00023851,2]
[364306857,1749064245743,-502.24,0.00023851,2]
[364306859,1749064245753,-440.0,0.00023851,2]
[364306861,1749064245763,-957.89,0.00023851,2]
[364306863,1749064245773,-465.53,0.00023851,2]
[364306865,1749064245783,-440.0,0.00023851,2]
[364306867,1749064245792,-440.0,0.00023851,2]
[364306869,1749064245802,-977.4,0.00023851,2]
[364306871,1749064245812,-182.17196922,0.00023863,2]
[364306873,1749064245822,-2342.15275744,0.00023866,10]
[364306875,1749064245831,-206.0,0.0002387,2]
[364306878,1749064245842,-2200.0,0.00023878,2]
[364306879,1749064245853,-166.06456614,0.000239,2]
[364306882,1749064245863,-1184.69,0.0002391,2]
[364306884,1749064245874,-1075.48,0.0002391,2]
[364306886,1749064245884,-440.0,0.0002391,2]
[364306888,1749064245894,-360.0,0.0002391,2]
[364306889,1749064245904,-440.0,0.0002391,2]
[364306891,1749064245914,-515.45,0.00023911,2]
[364306893,1749064245924,-440.0,0.00023911,2]
[364306895,1749064245933,-440.0,0.00023911,2]
[364306897,1749064245944,-315.0,0.00023911,2]
[364306899,1749064245954,-1000.0,0.00023914,2]
[364306901,1749064245964,-1500.0,0.00023914,2]
[364306904,1749064245976,-752.24,0.00023937,5]
[364306905,1749064245985,-2438.48,0.00023943,2]
[364306907,1749064245995,-440.0,0.00023943,2]
[364306910,1749064246005,-726.61,0.00023943,2]
[364306911,1749064246015,-712.76,0.00023943,2]
[364306914,1749064246024,-182.17196922,0.00023973,2]
[364306916,1749064246034,-155463.77453462,0.00023995,2]
[364306917,1749064246044,-151.0,0.00023995,7]
[364306919,1749064246055,-151.0,0.00023995,7]
[364306920,1749064246064,-151.0,0.00023995,7]
[364306921,1749064246074,-151.0,0.00023995,7]
[364306922,1749064246083,-151.0,0.00023995,7]
[364306923,1749064246092,-151.0,0.00023995,7]
[364306924,1749064246102,-151.0,0.00023995,7]
[364306925,1749064246111,-151.0,0.00023995,7]
[364306926,1749064246120,-151.0,0.00023995,7]
[364306927,1749064246129,-176.312334,0.00023995,7]
[364306929,1749064246139,-151.0,0.00023995,7]
[364306931,1749064246149,-151.0,0.00023995,7]
[364306933,1749064246159,-226.185763,0.00023995,7]
[364306935,1749064246167,-158.720593,0.00023995,7]
[364306937,1749064246177,-151.0,0.00023995,7]
[364306939,1749064246187,-151.0,0.00023995,7]
[364306941,1749064246196,-151.0,0.00023995,7]
[364306943,1749064246206,-262.180723,0.00023995,2]
[364306945,1749064246215,-262.180723,0.00023995,2]
[364306947,1749064246225,-151.0,0.00023995,7]
[364306949,1749064246234,-151.0,0.00023995,7]
[364306951,1749064246243,-274.989896,0.00023995,7]
[364306953,1749064246252,-151.0,0.00023995,7]
[364306955,1749064246261,-203.512286,0.00023995,7]
[364306957,1749064246271,-151.0,0.00023995,7]
[364306959,1749064246281,-151.0,0.00023995,7]
[364306961,1749064246291,-151.0,0.00023995,7]
[364306963,1749064246300,-151.0,0.00023995,7]
[364306965,1749064246309,-151.0,0.00023995,7]
[364306967,1749064246320,-151.0,0.00023995,7]
[364306969,1749064246334,-151.0,0.00023995,7]
[364306971,1749064246345,-319.850138,0.00023995,2]
[364306973,1749064246354,-319.850138,0.00023995,2]
[364306975,1749064246364,-151.0,0.00023995,7]
[364306977,1749064246373,-151.0,0.00023995,7]
[364306979,1749064246383,-151.0,0.00023995,7]
[364306981,1749064246393,-1000.0,0.00024,24]
[364306983,1749064246402,-151.0,0.00024,10]
[364306985,1749064246411,-500.0,0.00024,2]
[364306987,1749064246420,-500.0,0.00024,2]
[364306989,1749064246430,-500.0,0.00024,2]
[364306991,1749064246441,-500.0,0.00024,2]
[364306993,1749064246450,-500.0,0.00024,2]
[364306995,1749064246461,-500.0,0.00024,2]
[364306997,1749064246471,-500.0,0.00024,2]
[364306999,1749064246481,-752.24,0.00024037,5]
[364307001,1749064246492,-2342.15275744,0.00024038,10]
[364307003,1749064246505,-206.71454293,0.00024046,4]
[364307007,1749064246514,-206.71,0.00024046,4]
[364307009,1749064246524,-226.94,0.00024046,4]
[364307011,1749064246534,-275.09,0.00024046,4]
[364307013,1749064246544,-212.84934691,0.00024056,2]
[364307015,1749064246554,-1108.40063317,0.0002406,2]
[364307017,1749064246565,-1108.40063312,0.0002406,2]
[364307019,1749064246575,-1108.40063312,0.0002406,2]
[364307021,1749064246585,-1108.40063312,0.0002406,2]